fUSD/lending_fUSD_20240831
["ID","MTS","AMOUNT","RATE_DAILY","PERIOD"]
[336737779,1725095212193,-856.48,0.00038904,120]
[336737780,1725095212229,-1174.72,0.00038904,120]
[336737781,1725095212263,-500.0,0.00038904,120]
[336737782,1725095212296,-6112.91,0.00038904,120]
[336737783,1725095212332,-1112.91,0.00038904,120]
[336737784,1725095212367,-500.0,0.00038904,120]
[336737785,1725095212402,-150.0,0.00039114,120]
[336737786,1725095212436,-150.0,0.00039189,120]
[336737787,1725095212469,-1407.16,0.00039452,120]
[336737788,1725095212502,-500.0,0.00039452,120]
[336737789,1725095212538,-500.0,0.00039452,120]
[336737790,1725095212574,-500.0,0.00039452,120]
[336737791,1725095212608,-500.0,0.00039452,120]
[336737792,1725095212644,-1467.59,0.00039452,120]
[336737793,1725095212678,-500.0,0.00039452,120]
[336737794,1725095212714,-500.0,0.00039452,120]
[336737795,1725095212749,-500.0,0.00039452,120]
[336737796,1725095212783,-842.04,0.00039452,120]
[336737797,1725095212816,-1473.69,0.00039452,120]
[336737798,1725095212850,-500.0,0.00039452,120]
[336737799,1725095212884,-500.0,0.00039452,120]
[336737800,1725095212919,-500.0,0.00039452,120]
[336737801,1725095212953,-620.98,0.00039452,120]
[336737802,1725095212988,-500.0,0.00039452,120]
[336737803,1725095213023,-500.0,0.00039452,120]
[336737804,1725095213058,-442.11961164,0.00039452,120]
[336737805,1725095213095,-979.53,0.00039452,120]
[336737806,1725095213129,-540.01,0.00039452,120]
[336737807,1725095213164,-600.0,0.00039452,120]
[336737808,1725095213198,-1167.72,0.00039452,120]
[336737809,1725095213232,-500.0,0.00039452,120]
[336737810,1725095213264,-500.0,0.00039452,120]
[336737811,1725095213299,-500.0,0.00039452,120]
[336737812,1725095213333,-911.85,0.00039452,120]
[336737813,1725095213366,-500.0,0.00039452,120]
[336737814,1725095213398,-500.0,0.00039452,120]
[336737815,1725095213430,-679.36,0.00039452,120]
[336737816,1725095213463,-500.0,0.00039452,120]
[336737817,1725095213497,-500.0,0.00039452,120]
[336737818,1725095213533,-500.0,0.00039452,120]
[336737819,1725095213568,-500.0,0.00039452,120]
[336737820,1725095213602,-1545.2,0.00039452,120]
[336737821,1725095213636,-500.0,0.00039452,120]
[336737822,1725095213670,-655.76,0.00039452,120]
[336737823,1725095213705,-1118.32,0.00039452,120]
[336737824,1725095213739,-500.0,0.00039452,120]
[336737825,1725095213774,-1631.57,0.00039452,120]
[336737826,1725095213809,-824.0,0.00039452,120]
[336737827,1725095213844,-756.83,0.00039452,120]
[336737828,1725095213881,-500.0,0.00039452,120]
[336737829,1725095213918,-991.8,0.00039452,120]
[336737830,1725095213953,-1259.56,0.00039452,120]
[336737831,1725095213988,-500.0,0.00039452,120]
[336737832,1725095214023,-840.83,0.00039452,120]
[336737833,1725095214056,-500.0,0.00039452,120]
[336737834,1725095214092,-500.0,0.00039452,120]
[336737835,1725095214125,-1121.56,0.00039452,120]
[336737836,1725095214158,-1216.46,0.00039452,120]
[336737837,1725095214191,-500.0,0.00039452,120]
[336737838,1725095214297,-633.62701799,0.00039452,120]
[336737839,1725095214336,-747.34,0.00039452,120]
[336737840,1725095214370,-500.0,0.00039452,120]
[336737841,1725095214403,-500.0,0.00039452,120]
[336737842,1725095214437,-580.95521795,0.00039452,120]
[336737843,1725095214471,-240.06631496,0.00039452,120]
[336737844,1725095214506,-500.0,0.00039452,120]
[336737845,1725095214542,-742.95,0.00039452,120]
[336737846,1725095214578,-514.16,0.00039452,120]
[336737847,1725095214614,-1104.96,0.00039452,120]
[336737848,1725095214648,-887.03,0.00039452,120]
[336737849,1725095214681,-500.0,0.00039452,120]
[336737850,1725095214715,-500.0,0.00039452,120]
[336737851,1725095214750,-965.66,0.00039452,120]
[336737852,1725095214783,-953.7,0.00039452,120]
[336737853,1725095214816,-633.15,0.00039452,120]
[336737854,1725095214849,-500.0,0.00039452,120]
[336737855,1725095214882,-717.28,0.00039452,120]
[336737856,1725095214916,-500.0,0.00039452,120]
[336737857,1725095214952,-749.88,0.00039452,120]
[336737858,1725095214988,-688.57,0.00039452,120]
[336737859,1725095215025,-647.63,0.00039452,120]
[336737860,1725095215063,-500.0,0.00039452,120]
[336737861,1725095215100,-500.0,0.00039452,120]
[336737862,1725095215135,-500.0,0.00039452,120]
[336737863,1725095215171,-500.0,0.00039452,120]
[336737864,1725095215206,-618.36,0.00039452,120]
[336737865,1725095215244,-520.93,0.00039452,120]
[336737866,1725095215278,-1005.62,0.00039452,120]
[336737867,1725095215312,-1201.81,0.00039452,120]
[336737868,1725095215346,-1032.12,0.00039452,120]
[336737869,1725095215379,-500.0,0.00039452,120]
[336737870,1725095215414,-822.77,0.00039452,120]
[336737871,1725095215448,-500.0,0.00039452,120]
[336737872,1725095215482,-500.0,0.00039452,120]
[336737873,1725095215519,-500.0,0.00039452,120]
[336737874,1725095215559,-500.0,0.00039452,120]
[336737875,1725095215597,-500.0,0.00039452,120]
[336737876,1725095215636,-629.34,0.00039452,120]
[336737877,1725095215675,-891.7,0.00039452,120]
[336737878,1725095215714,-500.0,0.00039452,120]
[336737879,1725095215752,-690.68,0.00039452,120]
[336737880,1725095215790,-500.0,0.00039452,120]
[336737881,1725095215829,-500.0,0.00039452,120]
[336737882,1725095215866,-537.07,0.00039452,120]
[336737883,1725095215900,-500.0,0.00039452,120]
[336737884,1725095215934,-747.01,0.00039452,120]
[336737885,1725095215968,-1211.55,0.00039452,120]
[336737886,1725095216004,-500.0,0.00039452,120]
[336737887,1725095216039,-1331.69,0.00039452,120]
[336737888,1725095216073,-500.0,0.00039452,120]
[336737889,1725095216108,-390.69309092,0.00039452,120]
[336737890,1725095216143,-500.0,0.00039452,120]
[336737891,1725095216179,-500.0,0.00039452,120]
[336737892,1725095216214,-500.0,0.00039452,120]
[336737893,1725095216253,-500.0,0.00039452,120]
[336737894,1725095216288,-794.03,0.00039452,120]
[336737895,1725095216324,-500.0,0.00039452,120]
[336737896,1725095216359,-500.0,0.00039452,120]
[336737897,1725095216393,-551.23441227,0.00039452,120]
[336737898,1725095216428,-500.0,0.00039452,120]
[336737899,1725095216463,-500.0,0.00039452,120]
[336737900,1725095216500,-500.0,0.00039452,120]
[336737901,1725095216538,-500.0,0.00039452,120]
[336737902,1725095216574,-555.24,0.00039452,120]
[336737903,1725095216613,-710.71,0.00039452,120]
[336737904,1725095216653,-1225.12,0.00039452,120]
[336737905,1725095216692,-500.0,0.00039452,120]
[336737906,1725095216729,-557.74,0.00039452,120]
[336737907,1725095216766,-1907.35,0.00039452,120]
[336737908,1725095216802,-500.0,0.00039452,120]
[336737909,1725095216838,-745.66,0.00039452,120]
[336737910,1725095216873,-500.0,0.00039452,120]
[336737911,1725095216909,-500.0,0.00039452,120]
[336737912,1725095216948,-500.0,0.00039452,120]
[336737913,1725095216985,-500.0,0.00039452,120]
[336737914,1725095217022,-2051.45,0.00039452,120]
[336737915,1725095217057,-500.0,0.00039452,120]
[336737916,1725095217095,-994.45,0.00039452,120]
[336737917,1725095217129,-962.34,0.00039452,120]
[336737918,1725095217162,-500.0,0.00039452,120]
[336737919,1725095217195,-500.0,0.00039452,120]
[336737920,1725095217229,-1123.23,0.00039452,120]
[336737921,1725095217261,-500.0,0.00039452,120]
[336737922,1725095217295,-500.0,0.00039452,120]
[336737923,1725095217328,-500.0,0.00039452,120]
[336737924,1725095217361,-500.0,0.00039452,120]
[336737925,1725095217396,-500.0,0.00039452,120]
[336737926,1725095217430,-500.0,0.00039452,120]
[336737927,1725095217464,-1180.05,0.00039452,120]
[336737928,1725095217498,-743.34,0.00039452,120]
[336737929,1725095217532,-500.0,0.00039452,120]
[336737930,1725095217566,-762.64,0.00039452,120]
[336737931,1725095217598,-500.0,0.00039452,120]
[336737932,1725095217631,-500.0,0.00039452,120]
[336737933,1725095217663,-502.32,0.00039452,120]
[336737934,1725095217696,-1156.19,0.00039452,120]
[336737935,1725095217729,-500.0,0.00039452,120]
[336737936,1725095217763,-500.0,0.00039452,120]
[336737937,1725095217795,-292.51571998,0.00039452,120]
[336737938,1725095217827,-500.0,0.00039452,120]
[336737939,1725095217861,-238.23344253,0.00039452,120]
[336737940,1725095217893,-2132.37,0.00039452,120]
[336737941,1725095217924,-679.85,0.00039452,120]
[336737942,1725095217955,-778.94,0.00039452,120]
[336737943,1725095217986,-500.0,0.00039452,120]
[336737944,1725095218138,-500.0,0.00039452,120]
[336737945,1725095218176,-500.0,0.00039452,120]
[336737946,1725095218213,-1655.98,0.00039452,120]
[336737947,1725095218255,-641.92,0.00039452,120]
[336737948,1725095218290,-500.0,0.00039452,120]
[336737949,1725095218324,-721.55,0.00039452,120]
[336737950,1725095218359,-500.0,0.00039452,120]
[336737951,1725095218394,-500.0,0.00039452,120]
[336737952,1725095218429,-1698.11,0.00039452,120]
[336737953,1725095218463,-500.0,0.00039452,120]
[336737954,1725095218498,-565.51,0.00039452,120]
[336737955,1725095218536,-500.0,0.00039452,120]
[336737956,1725095218574,-500.0,0.00039452,120]
[336737957,1725095218610,-500.0,0.00039452,120]
[336737958,1725095218645,-500.0,0.00039452,120]
[336737959,1725095218681,-1767.67,0.00039452,120]
[336737960,1725095218716,-500.0,0.00039452,120]
[336737961,1725095218750,-500.0,0.00039452,120]
[336737962,1725095218784,-1166.82,0.00039452,120]
[336737963,1725095218817,-500.0,0.00039452,120]
[336737964,1725095218851,-500.0,0.00039452,120]
[336737965,1725095218883,-500.0,0.00039452,120]
[336737966,1725095218917,-500.0,0.00039452,120]
[336737967,1725095218949,-500.0,0.00039452,120]
[336737968,1725095218982,-500.0,0.00039452,120]
[336737969,1725095219014,-781.78,0.00039452,120]
[336737970,1725095219046,-549.02,0.00039452,120]
[336737971,1725095219080,-500.0,0.00039452,120]
[336737972,1725095219112,-879.7,0.00039452,120]
[336737973,1725095219145,-1120.93,0.00039452,120]
[336737974,1725095219177,-500.0,0.00039452,120]
[336737975,1725095219208,-500.0,0.00039452,120]
[336737976,1725095219244,-2000.0,0.00039452,120]
[336737977,1725095219276,-850.45,0.00039452,120]
[336737978,1725095219308,-1405.32,0.00039452,120]
[336737979,1725095219340,-500.0,0.00039452,120]
[336737980,1725095219371,-500.0,0.00039452,120]
[336737981,1725095219402,-500.0,0.00039452,120]
[336737982,1725095219436,-1626.86,0.00039452,120]
[336737983,1725095219469,-500.0,0.00039452,120]
[336737984,1725095219504,-500.0,0.00039452,120]
[336737985,1725095219540,-500.0,0.00039452,120]
[336737986,1725095219577,-500.0,0.00039452,120]
[336737987,1725095219613,-3231.8,0.00039452,120]
[336737988,1725095219649,-720.15,0.00039452,120]
[336737989,1725095219684,-952.01,0.00039452,120]
[336737990,1725095219719,-500.0,0.00039452,120]
[336737991,1725095219753,-500.0,0.00039452,120]
[336737992,1725095219788,-500.0,0.00039452,120]
[336737993,1725095219820,-500.0,0.00039452,120]
[336737994,1725095219852,-1826.94,0.00039452,120]
[336737995,1725095219884,-500.0,0.00039452,120]
[336737996,1725095219915,-767.31,0.00039452,120]
[336737997,1725095219947,-4817.96,0.00039452,120]
[336737998,1725095219979,-1468.77,0.00039452,120]
[336737999,1725095220014,-500.0,0.00039452,120]
[336738000,1725095220047,-679.65,0.00039452,120]
[336738001,1725095220082,-500.0,0.00039452,120]
[336738002,1725095220118,-833.01,0.00039452,120]
[336738003,1725095220153,-536.46,0.00039452,120]
[336738004,1725095220190,-500.0,0.00039452,120]
[336738005,1725095220227,-500.0,0.00039452,120]
[336738006,1725095220262,-500.0,0.00039452,120]
[336738007,1725095220296,-1436.9,0.00039452,120]
[336738008,1725095220332,-500.0,0.00039452,120]
[336738009,1725095220365,-717.79,0.00039452,120]
[336738010,1725095220399,-500.0,0.00039452,120]
[336738011,1725095220432,-911.59,0.00039452,120]
[336738012,1725095220464,-1096.58,0.00039452,120]
[336738013,1725095220496,-931.07,0.00039452,120]
[336738014,1725095220530,-500.0,0.00039452,120]
[336738015,1725095220564,-727.87,0.00039452,120]
[336738016,1725095220600,-1205.13,0.00039452,120]
[336738017,1725095220636,-3164.47,0.00039452,120]
[336738018,1725095220673,-801.74,0.00039452,120]
[336738019,1725095220709,-500.0,0.00039452,120]
[336738020,1725095220743,-505.92,0.00039452,120]
[336738021,1725095220777,-500.0,0.00039452,120]
[336738022,1725095220811,-532.71,0.00039452,120]
[336738023,1725095220843,-1669.33,0.00039452,120]
[336738024,1725095220876,-500.0,0.00039452,120]
[336738025,1725095220908,-500.0,0.00039452,120]
[336738026,1725095220939,-1066.37,0.00039452,120]
[336738027,1725095220972,-622.08,0.00039452,120]
[336738028,1725095221005,-1994.12,0.00039452,120]
[336738029,1725095221037,-500.0,0.00039452,120]
[336738030,1725095221069,-511.47041709,0.00039452,120]
[336738031,1725095221106,-500.0,0.00039452,120]
[336738032,1725095221139,-1009.62,0.00039452,120]
[336738033,1725095221442,-500.0,0.00039452,120]
[336738034,1725095221481,-740.53,0.00039452,120]
[336738035,1725095221522,-500.0,0.00039452,120]
[336738036,1725095221567,-1230.33,0.00039452,120]
[336738037,1725095221606,-1763.31,0.00039452,120]
[336738038,1725095221643,-500.0,0.00039452,120]
[336738039,1725095221680,-500.0,0.00039452,120]
[336738040,1725095221715,-500.0,0.00039452,120]
[336738041,1725095221748,-606.13,0.00039452,120]
[336738042,1725095221782,-500.0,0.00039452,120]
[336738043,1725095221815,-500.0,0.00039452,120]
[336738044,1725095221849,-980.1,0.00039452,120]
[336738045,1725095221881,-988.12,0.00039452,120]
[336738046,1725095221915,-530.81,0.00039452,120]
[336738047,1725095221948,-924.86,0.00039452,120]
[336738048,1725095221982,-500.0,0.00039452,120]
[336738049,1725095222018,-500.0,0.00039452,120]
[336738050,1725095222056,-3827.58,0.00039452,120]
[336738051,1725095222100,-500.0,0.00039452,120]
[336738052,1725095222139,-3646.24,0.00039452,120]
[336738053,1725095222176,-708.43,0.00039452,120]
[336738054,1725095222214,-500.0,0.00039452,120]
[336738055,1725095222254,-4493.23,0.00039452,120]
[336738056,1725095222290,-728.19,0.00039452,120]
[336738057,1725095222327,-500.0,0.00039452,120]
[336738058,1725095222365,-950.06,0.00039452,120]
[336738059,1725095222401,-1920.7,0.00039452,120]
[336738060,1725095222436,-500.0,0.00039452,120]
[336738061,1725095222472,-575.64,0.00039452,120]
[336738062,1725095222506,-1812.32,0.00039452,120]
[336738063,1725095222540,-500.0,0.00039452,120]
[336738064,1725095222573,-500.0,0.00039452,120]
[336738065,1725095222608,-1524.42,0.00039452,120]
[336738066,1725095222646,-500.0,0.00039452,120]
[336738067,1725095222684,-1447.18,0.00039452,120]
[336738068,1725095222722,-500.0,0.00039452,120]
[336738069,1725095222758,-500.0,0.00039452,120]
[336738070,1725095222795,-500.0,0.00039452,120]
[336738071,1725095222832,-500.0,0.00039452,120]
[336738072,1725095222870,-592.47,0.00039452,120]
[336738073,1725095222907,-500.0,0.00039452,120]
[336738074,1725095222945,-500.0,0.00039452,120]
[336738075,1725095222982,-500.0,0.00039452,120]
[336738076,1725095223017,-2064.17,0.00039452,120]
[336738077,1725095223056,-1875.57,0.00039452,120]
[336738078,1725095223092,-1128.77,0.00039452,120]
[336738079,1725095223128,-500.0,0.00039452,120]
[336738080,1725095223165,-500.0,0.00039452,120]
[336738081,1725095223200,-1217.2,0.00039452,120]
[336738082,1725095223236,-500.0,0.00039452,120]
[336738083,1725095223273,-1083.85,0.00039452,120]
[336738084,1725095223309,-500.0,0.00039452,120]
[336738085,1725095223346,-500.0,0.00039452,120]
[336738086,1725095223384,-1019.1,0.00039452,120]
[336738087,1725095223422,-500.0,0.00039452,120]
[336738088,1725095223459,-710.75,0.00039452,120]
[336738089,1725095223498,-500.0,0.00039452,120]
[336738090,1725095223538,-500.0,0.00039452,120]
[336738091,1725095223580,-517.99,0.00039452,120]
[336738092,1725095223623,-500.0,0.00039452,120]
[336738093,1725095223664,-675.18,0.00039452,120]
[336738094,1725095223707,-500.0,0.00039452,120]
[336738095,1725095223750,-500.0,0.00039452,120]
[336738096,1725095223793,-1486.52,0.00039452,120]
[336738097,1725095223834,-500.0,0.00039452,120]
[336738098,1725095223874,-500.0,0.00039452,120]
[336738099,1725095223915,-2753.3,0.00039452,120]
[336738100,1725095223954,-583.94,0.00039452,120]
[336738101,1725095223994,-500.0,0.00039452,120]
[336738102,1725095224033,-738.68,0.00039452,120]
[336738103,1725095224074,-500.0,0.00039452,120]
[336738104,1725095224115,-500.0,0.00039452,120]
[336738105,1725095224228,-500.17810086,0.00039452,120]
[336738106,1725095224270,-500.0,0.00039452,120]
[336738107,1725095224311,-500.0,0.00039452,120]
[336738108,1725095224351,-500.0,0.00039452,120]
[336738109,1725095224390,-719.07,0.00039452,120]
[336738110,1725095224431,-500.0,0.00039452,120]
[336738111,1725095224474,-3951.8,0.00039452,120]
[336738112,1725095224514,-500.0,0.00039452,120]
[336738113,1725095224556,-601.72,0.00039452,120]
[336738114,1725095224598,-1031.98,0.00039452,120]
[336738115,1725095224637,-500.0,0.00039452,120]
[336738116,1725095224678,-1766.78,0.00039452,120]
[336738117,1725095224717,-500.0,0.00039452,120]
[336738118,1725095224754,-743.24,0.00039452,120]
[336738119,1725095224792,-2762.25,0.00039452,120]
[336738120,1725095224830,-504.08,0.00039452,120]
[336738121,1725095224869,-1073.92,0.00039452,120]
[336738122,1725095224907,-500.0,0.00039452,120]
[336738123,1725095224946,-500.0,0.00039452,120]
[336738124,1725095224986,-732.6,0.00039452,120]
[336738125,1725095225027,-500.0,0.00039452,120]
[336738126,1725095225066,-500.0,0.00039452,120]
[336738127,1725095225105,-1147.38,0.00039452,120]
[336738128,1725095225142,-610.57,0.00039452,120]
[336738129,1725095225181,-500.0,0.00039452,120]
[336738130,1725095225220,-500.0,0.00039452,120]
[336738131,1725095225265,-1682.94,0.00039452,120]
[336738132,1725095225306,-1286.64,0.00039452,120]
[336738133,1725095225346,-642.6,0.00039452,120]
[336738134,1725095225385,-500.0,0.00039452,120]
[336738135,1725095225423,-1185.99,0.00039452,120]
[336738136,1725095225461,-1364.66,0.00039452,120]
[336738137,1725095225498,-500.0,0.00039452,120]
[336738138,1725095225535,-702.01,0.00039452,120]
[336738139,1725095225573,-1499.64,0.00039452,120]
[336738140,1725095225610,-500.0,0.00039452,120]
[336738141,1725095225648,-3311.22,0.00039452,120]
[336738142,1725095225685,-500.0,0.00039452,120]
[336738143,1725095225723,-647.07,0.00039452,120]
[336738144,1725095225759,-1454.66,0.00039452,120]
[336738145,1725095225796,-500.0,0.00039452,120]
[336738146,1725095225831,-500.0,0.00039452,120]
[336738147,1725095225867,-500.0,0.00039452,120]
[336738148,1725095225901,-1546.22,0.00039452,120]
[336738149,1725095225933,-500.0,0.00039452,120]
[336738150,1725095225965,-500.0,0.00039452,120]
[336738151,1725095225998,-500.0,0.00039452,120]
[336738152,1725095226033,-3608.63,0.00039452,120]
[336738153,1725095226067,-500.0,0.00039452,120]
[336738154,1725095226106,-500.0,0.00039452,120]
[336738155,1725095226143,-5289.61,0.00039452,120]
[336738156,1725095226179,-515.25,0.00039452,120]
[336738157,1725095226214,-5988.01,0.00039452,120]
[336738158,1725095226252,-500.0,0.00039452,120]
[336738159,1725095226284,-500.0,0.00039452,120]
[336738160,1725095226318,-500.0,0.00039452,120]
[336738161,1725095226352,-1293.85,0.00039452,120]
[336738162,1725095226385,-500.0,0.00039452,120]
[336738163,1725095226420,-5303.97,0.00039452,120]
[336738164,1725095226454,-500.0,0.00039452,120]
[336738165,1725095226487,-547.81,0.00039452,120]
[336738166,1725095226521,-182.36035117,0.00039452,120]
[336738167,1725095226556,-1730.31,0.00039452,120]
[336738168,1725095226590,-500.0,0.00039452,120]
[336738169,1725095226625,-500.0,0.00039452,120]
[336738170,1725095226660,-16245.07,0.00039452,120]
[336738171,1725095226695,-500.0,0.00039452,120]
[336738172,1725095226730,-588.28,0.00039452,120]
[336738173,1725095226765,-1587.67,0.00039452,120]
[336738174,1725095226799,-500.0,0.00039452,120]
[336738175,1725095226831,-500.0,0.00039452,120]
[336738176,1725095226865,-500.0,0.00039452,120]
[336738177,1725095226900,-712.97,0.00039452,120]
[336738178,1725095226933,-1552.16,0.00039452,120]
[336738179,1725095226969,-1206.06,0.00039452,120]
[336738180,1725095227004,-1133.27,0.00039452,120]
[336738181,1725095227040,-500.0,0.00039452,120]
[336738182,1725095227076,-500.0,0.00039452,120]
[336738183,1725095227112,-993.85,0.00039452,120]
[336738184,1725095227148,-500.0,0.00039452,120]
[336738185,1725095227185,-1402.54,0.00039452,120]
[336738186,1725095227224,-674.44,0.00039452,120]
[336738187,1725095227262,-1258.6,0.00039452,120]
[336738188,1725095227301,-1030.38,0.00039452,120]
[336738189,1725095227337,-602.62,0.00039452,120]
[336738190,1725095227374,-510.96,0.00039452,120]
[336738191,1725095227411,-917.71,0.00039452,120]
[336738192,1725095227447,-500.0,0.00039452,120]
[336738193,1725095227488,-1055.38,0.00039452,120]
[336738194,1725095227526,-500.0,0.00039452,120]
[336738195,1725095227563,-1387.93,0.00039452,120]
[336738196,1725095227598,-1707.8,0.00039452,120]
[336738197,1725095227634,-500.0,0.00039452,120]
[336738198,1725095227669,-500.0,0.00039452,120]
[336738199,1725095227705,-537.31,0.00039452,120]
[336738200,1725095227742,-1038.22,0.00039452,120]
[336738201,1725095227777,-500.0,0.00039452,120]
[336738202,1725095227812,-252.40723263,0.00039452,120]
[336738203,1725095227846,-500.0,0.00039452,120]
[336738204,1725095227880,-500.0,0.00039452,120]
[336738205,1725095227914,-1188.85,0.00039452,120]
[336738206,1725095227946,-500.0,0.00039452,120]
[336738207,1725095227979,-708.93,0.00039452,120]
[336738208,1725095228010,-1013.32,0.00039452,120]
[336738209,1725095228043,-500.0,0.00039452,120]
[336738210,1725095228191,-922.41,0.00039452,120]
[336738211,1725095228229,-518.04,0.00039452,120]
[336738212,1725095228267,-1299.67,0.00039452,120]
[336738213,1725095228303,-500.0,0.00039452,120]
[336738214,1725095228340,-500.0,0.00039452,120]
[336738215,1725095228376,-13620.0,0.00039452,120]
[336738216,1725095228409,-585.4807622,0.00039452,120]
[336738217,1725095228442,-500.0,0.00039452,120]
[336738218,1725095228474,-500.0,0.00039452,120]
[336738219,1725095228508,-500.0,0.00039452,120]
[336738220,1725095228541,-338.34149011,0.00039452,120]
[336738221,1725095228575,-500.0,0.00039452,120]
[336738222,1725095228608,-500.0,0.00039452,120]
[336738223,1725095228643,-752.56,0.00039452,120]
[336738224,1725095228678,-500.0,0.00039452,120]
[336738225,1725095228713,-2630.66,0.00039452,120]
[336738226,1725095228750,-884.82,0.00039452,120]
[336738227,1725095228785,-500.0,0.00039452,120]
[336738228,1725095228819,-894.96,0.00039452,120]
[336738229,1725095228853,-1104.47,0.00039452,120]
[336738230,1725095228889,-164.79844292,0.00039452,120]
[336738231,1725095228922,-500.0,0.00039452,120]
[336738232,1725095228955,-1283.18,0.00039452,120]
[336738233,1725095228989,-500.0,0.00039452,120]
[336738234,1725095229023,-500.0,0.00039452,120]
[336738235,1725095229057,-1182.0,0.00039452,120]
[336738236,1725095229090,-500.0,0.00039452,120]
[336738237,1725095229123,-500.0,0.00039452,120]
[336738238,1725095229156,-500.0,0.00039452,120]
[336738239,1725095229190,-4403.97,0.00039452,120]
[336738240,1725095229227,-991.63,0.00039452,120]
[336738241,1725095229261,-1615.56,0.00039452,120]
[336738242,1725095229296,-500.0,0.00039452,120]
[336738243,1725095229330,-500.0,0.00039452,120]
[336738244,1725095229364,-1461.45,0.00039452,120]
[336738245,1725095229398,-1066.46,0.00039452,120]
[336738246,1725095229433,-1358.03,0.00039452,120]
[336738247,1725095229470,-2089.75,0.00039452,120]
[336738248,1725095229505,-500.0,0.00039452,120]
[336738249,1725095229543,-500.0,0.00039452,120]
[336738250,1725095229581,-500.0,0.00039452,120]
[336738251,1725095229617,-7958.09,0.00039452,120]
[336738252,1725095229653,-980.36,0.00039452,120]
[336738253,1725095229687,-832.48,0.00039452,120]
[336738254,1725095229724,-1180.6,0.00039452,120]
[336738255,1725095229759,-500.0,0.00039452,120]
[336738256,1725095229794,-555.11,0.00039452,120]
[336738257,1725095229828,-500.0,0.00039452,120]
[336738258,1725095229863,-2281.84,0.00039452,120]
[336738259,1725095229898,-500.0,0.00039452,120]
[336738260,1725095229931,-14453.84,0.00039452,120]
[336738261,1725095229963,-623.33,0.00039452,120]
[336738262,1725095229996,-640.92,0.00039452,120]
[336738263,1725095230029,-583.68,0.00039452,120]
[336738264,1725095230061,-507.13,0.00039452,120]
[336738265,1725095230095,-500.0,0.00039452,120]
[336738266,1725095230129,-500.0,0.00039452,120]
[336738267,1725095230162,-638.13,0.00039452,120]
[336738268,1725095230197,-1931.71,0.00039452,120]
[336738269,1725095230232,-1435.64,0.00039452,120]
[336738270,1725095230265,-1033.65,0.00039452,120]
[336738271,1725095230299,-1120.04,0.00039452,120]
[336738272,1725095230335,-4153.75,0.00039452,120]
[336738273,1725095230370,-500.0,0.00039452,120]
[336738274,1725095230405,-500.0,0.00039452,120]
[336738275,1725095230439,-2080.67,0.00039452,120]
[336738276,1725095230474,-500.0,0.00039452,120]
[336738277,1725095230511,-2256.05,0.00039452,120]
[336738278,1725095230549,-3259.35,0.00039452,120]